fUSD/lending_fUSD_20240104
["ID","MTS","AMOUNT","RATE_DAILY","PERIOD"]
[310100242,1704329435311,-500.0,0.00032876,2]
[310100243,1704329435320,-500.0,0.00032876,2]
[310100244,1704329435330,-500.0,0.00032876,2]
[310100245,1704329435339,-500.0,0.00032876,2]
[310100246,1704329435349,-500.0,0.00032876,2]
[310100247,1704329435358,-500.0,0.00032876,2]
[310100248,1704329435367,-500.0,0.00032876,2]
[310100249,1704329435376,-500.0,0.00032876,2]
[310100250,1704329435386,-406.42272415,0.00032876,2]
[310100251,1704329435395,-500.0,0.00032876,2]
[310100252,1704329435404,-500.0,0.00032876,2]
[310100253,1704329435413,-500.0,0.00032876,2]
[310100254,1704329435422,-500.0,0.00032876,2]
[310100255,1704329435431,-547.9,0.00032876,2]
[310100256,1704329435440,-500.0,0.00032876,2]
[310100257,1704329435450,-500.0,0.00032876,2]
[310100258,1704329435459,-500.0,0.00032876,2]
[310100259,1704329435468,-500.0,0.00032876,2]
[310100260,1704329435478,-500.0,0.00032876,2]
[310100261,1704329435487,-500.0,0.00032876,2]
[310100262,1704329435496,-530.86363359,0.00032876,2]
[310100263,1704329435506,-272.28911905,0.00032876,2]
[310100264,1704329435516,-474.51510477,0.00032876,2]
[310100265,1704329435526,-500.0,0.00032876,2]
[310100266,1704329435535,-500.0,0.00032876,2]
[310100267,1704329435545,-500.0,0.00032876,2]
[310100268,1704329435554,-500.0,0.00032876,2]
[310100269,1704329435563,-228.09383055,0.00032876,2]
[310100270,1704329435572,-500.0,0.00032876,2]
[310100271,1704329435581,-500.0,0.00032876,2]
[310100272,1704329435591,-222.0,0.00032876,2]
[310100273,1704329435600,-445.62,0.00032876,2]
[310100274,1704329435610,-1162.55,0.00032876,2]
[310100275,1704329435621,-545.9,0.00032876,2]
[310100276,1704329435631,-500.0,0.00032876,2]
[310100277,1704329435644,-220.18014318,0.00032876,2]
[310100278,1704329435654,-500.0,0.00032876,2]
[310100279,1704329435663,-500.0,0.00032876,2]
[310100280,1704329435673,-500.0,0.00032876,2]
[310100281,1704329435684,-500.0,0.00032876,2]
[310100282,1704329435694,-500.0,0.00032876,2]
[310100283,1704329435703,-500.0,0.00032876,2]
[310100284,1704329435712,-334.96906561,0.00032876,3]
[310100285,1704329435722,-500.0,0.00032876,2]
[310100286,1704329435732,-500.0,0.00032876,2]
[310100287,1704329435742,-500.0,0.00032876,2]
[310100288,1704329435751,-500.0,0.00032876,2]
[310100289,1704329435761,-500.0,0.00032876,2]
[310100290,1704329435771,-500.0,0.00032876,2]
[310100291,1704329435780,-500.0,0.00032876,2]
[310100292,1704329435789,-1969.0,0.00032876,2]
[310100293,1704329435798,-500.0,0.00032876,2]
[310100294,1704329435808,-500.0,0.00032876,2]
[310100295,1704329435818,-544.57,0.00032876,2]
[310100296,1704329435829,-500.0,0.00032876,2]
[310100297,1704329435838,-500.0,0.00032876,2]
[310100298,1704329435848,-500.0,0.00032876,2]
[310100299,1704329435857,-500.0,0.00032876,2]
[310100300,1704329435867,-500.0,0.00032876,2]
[310100301,1704329435877,-594.37687467,0.00032876,2]
[310100302,1704329435886,-500.0,0.00032876,2]
[310100303,1704329435896,-525.35183841,0.00032876,2]
[310100304,1704329435905,-500.0,0.00032876,2]
[310100305,1704329435914,-500.0,0.00032876,2]
[310100306,1704329435924,-500.0,0.00032876,2]
[310100307,1704329435933,-500.0,0.00032876,2]
[310100308,1704329435942,-500.0,0.00032876,2]
[310100309,1704329435951,-500.0,0.00032876,2]
[310100310,1704329435960,-500.0,0.00032876,2]
[310100311,1704329435970,-500.0,0.00032876,2]
[310100312,1704329435979,-500.0,0.00032876,2]
[310100313,1704329435988,-500.0,0.00032876,2]
[310100314,1704329435998,-500.0,0.00032876,2]
[310100315,1704329436007,-500.0,0.00032876,2]
[310100316,1704329436016,-632.59,0.00032876,2]
[310100317,1704329436026,-500.0,0.00032876,2]
[310100318,1704329436035,-500.0,0.00032876,2]
[310100319,1704329436045,-500.0,0.00032876,2]
[310100320,1704329436055,-500.0,0.00032876,2]
[310100321,1704329436064,-500.0,0.00032876,2]
[310100322,1704329436074,-500.0,0.00032876,2]
[310100323,1704329436083,-500.0,0.00032876,2]
[310100324,1704329436093,-500.0,0.00032876,2]
[310100325,1704329436102,-500.0,0.00032876,2]
[310100326,1704329436112,-538.59,0.00032876,2]
[310100327,1704329436121,-500.0,0.00032876,2]
[310100328,1704329436130,-568.72,0.00032876,2]
[310100329,1704329436140,-500.0,0.00032876,2]
[310100330,1704329436150,-500.0,0.00032876,2]
[310100331,1704329436159,-500.0,0.00032876,2]
[310100332,1704329436169,-500.0,0.00032876,2]
[310100333,1704329436178,-500.0,0.00032876,2]
[310100334,1704329436187,-500.0,0.00032876,2]
[310100335,1704329436197,-500.0,0.00032876,2]
[310100336,1704329436206,-500.0,0.00032876,2]
[310100337,1704329436216,-500.0,0.00032876,2]
[310100338,1704329436225,-446.55593852,0.00032876,2]
[310100339,1704329436235,-500.0,0.00032876,2]
[310100340,1704329436245,-500.0,0.00032876,2]
[310100341,1704329436255,-564.57,0.00032876,2]
[310100342,1704329436264,-500.0,0.00032876,2]
[310100343,1704329436273,-500.0,0.00032876,2]
[310100344,1704329436282,-500.0,0.00032876,2]
[310100345,1704329436291,-500.0,0.00032876,2]
[310100346,1704329436300,-396.73342034,0.00032876,2]
[310100347,1704329436310,-500.0,0.00032876,2]
[310100348,1704329436319,-500.0,0.00032876,2]
[310100349,1704329436329,-500.0,0.00032876,2]
[310100350,1704329436340,-500.0,0.00032876,2]
[310100351,1704329436349,-500.0,0.00032876,2]
[310100352,1704329436359,-500.0,0.00032876,2]
[310100353,1704329436368,-500.0,0.00032876,2]
[310100354,1704329436377,-500.0,0.00032876,2]
[310100355,1704329436387,-500.0,0.00032876,2]
[310100356,1704329436396,-500.0,0.00032876,2]
[310100357,1704329436406,-621.85041057,0.00032876,2]
[310100358,1704329436415,-500.0,0.00032876,2]
[310100359,1704329436424,-500.0,0.00032876,2]
[310100360,1704329436433,-500.0,0.00032876,2]
[310100361,1704329436443,-638.37,0.00032876,2]
[310100362,1704329436452,-540.79,0.00032876,2]
[310100363,1704329436461,-500.0,0.00032876,2]
[310100364,1704329436470,-500.0,0.00032876,2]
[310100365,1704329436479,-469.33,0.00032876,2]
[310100366,1704329436489,-455.52,0.00032876,2]
[310100367,1704329436498,-500.0,0.00032876,2]
[310100368,1704329436510,-500.0,0.00032876,2]
[310100369,1704329436520,-500.0,0.00032876,2]
[310100370,1704329436529,-1482.19,0.00032876,2]
[310100371,1704329436539,-500.0,0.00032876,2]
[310100372,1704329436550,-500.0,0.00032876,2]
[310100373,1704329436560,-647.82,0.00032876,2]
[310100374,1704329436569,-500.0,0.00032876,2]
[310100375,1704329436579,-858.38,0.00032876,2]
[310100376,1704329436589,-500.0,0.00032876,2]
[310100377,1704329436598,-11280.23,0.00032876,2]
[310100378,1704329436607,-500.0,0.00032876,2]
[310100379,1704329436617,-500.0,0.00032876,2]
[310100380,1704329436627,-500.0,0.00032876,2]
[310100381,1704329436636,-500.0,0.00032876,2]
[310100382,1704329436646,-500.0,0.00032876,2]
[310100383,1704329436656,-500.0,0.00032876,2]
[310100384,1704329436666,-500.0,0.00032876,2]
[310100385,1704329436675,-500.0,0.00032876,2]
[310100386,1704329436685,-3136.34,0.00032876,2]
[310100387,1704329436696,-500.0,0.00032876,2]
[310100388,1704329436706,-769.65,0.00032876,2]
[310100389,1704329436716,-500.0,0.00032876,2]
[310100390,1704329436725,-500.0,0.00032876,2]
[310100391,1704329436735,-500.0,0.00032876,2]
[310100392,1704329436745,-500.0,0.00032876,2]
[310100393,1704329436754,-500.0,0.00032876,2]
[310100394,1704329436764,-554.06162819,0.00032876,2]
[310100395,1704329436773,-500.0,0.00032876,2]
[310100396,1704329436783,-500.0,0.00032876,2]
[310100397,1704329436792,-500.0,0.00032876,2]
[310100398,1704329436801,-500.0,0.00032876,2]
[310100399,1704329436811,-500.0,0.00032876,2]
[310100400,1704329436821,-500.0,0.00032876,2]
[310100401,1704329436830,-500.0,0.00032876,2]
[310100402,1704329436839,-500.0,0.00032876,2]
[310100403,1704329436849,-500.0,0.00032876,2]
[310100404,1704329436859,-500.0,0.00032876,2]
[310100405,1704329436868,-500.0,0.00032876,2]
[310100406,1704329436878,-225.48318971,0.00032876,2]
[310100407,1704329436888,-500.0,0.00032876,2]
[310100408,1704329436898,-500.0,0.00032876,2]
[310100409,1704329436907,-500.0,0.00032876,2]
[310100410,1704329436917,-592.84726708,0.00032876,2]
[310100411,1704329436926,-500.0,0.00032876,2]
[310100412,1704329436935,-500.0,0.00032876,2]
[310100413,1704329436945,-500.0,0.00032876,2]
[310100414,1704329436954,-500.0,0.00032876,2]
[310100415,1704329436964,-500.0,0.00032876,2]
[310100416,1704329436973,-500.0,0.00032876,2]
[310100417,1704329436983,-567.8,0.00032876,2]
[310100418,1704329436992,-500.0,0.00032876,2]
[310100419,1704329437002,-500.0,0.00032876,2]
[310100420,1704329437011,-249.27381767,0.00032876,2]
[310100421,1704329437020,-591.08,0.00032876,2]
[310100422,1704329437030,-500.0,0.00032876,2]
[310100423,1704329437039,-500.0,0.00032876,2]
[310100424,1704329437048,-500.0,0.00032876,2]
[310100425,1704329437058,-500.0,0.00032876,2]
[310100426,1704329437067,-500.0,0.00032876,2]
[310100427,1704329437076,-612.70253556,0.00032876,2]
[310100428,1704329437086,-500.0,0.00032876,2]
[310100429,1704329437095,-500.0,0.00032876,2]
[310100430,1704329437105,-500.0,0.00032876,2]
[310100431,1704329437114,-500.0,0.00032876,2]
[310100432,1704329437125,-500.0,0.00032876,2]
[310100433,1704329437134,-500.0,0.00032876,2]
[310100434,1704329437144,-500.0,0.00032876,2]
[310100435,1704329437153,-500.0,0.00032876,2]
[310100436,1704329437162,-500.0,0.00032876,2]
[310100437,1704329437172,-500.0,0.00032876,2]
[310100438,1704329437182,-7606.77,0.00032876,2]
[310100439,1704329437191,-523.91,0.00032876,2]
[310100440,1704329437200,-529.44,0.00032876,2]
[310100441,1704329437209,-500.0,0.00032876,2]
[310100442,1704329437218,-500.0,0.00032876,2]
[310100443,1704329437228,-500.0,0.00032876,2]
[310100444,1704329437237,-500.0,0.00032876,2]
[310100445,1704329437247,-500.0,0.00032876,2]
[310100446,1704329437256,-500.0,0.00032876,2]
[310100447,1704329437265,-979.46,0.00032876,2]
[310100448,1704329437276,-500.0,0.00032876,2]
[310100449,1704329437285,-500.0,0.00032876,2]
[310100450,1704329437294,-500.0,0.00032876,2]
[310100451,1704329437304,-500.0,0.00032876,2]
[310100452,1704329437313,-500.0,0.00032876,2]
[310100453,1704329437323,-500.0,0.00032876,2]
[310100454,1704329437332,-500.0,0.00032876,2]
[310100455,1704329437342,-500.0,0.00032876,2]
[310100456,1704329437351,-500.0,0.00032876,2]
[310100457,1704329437361,-500.0,0.00032876,2]
[310100458,1704329437370,-500.0,0.00032876,2]
[310100459,1704329437379,-500.0,0.00032876,2]
[310100460,1704329437389,-500.0,0.00032876,2]
[310100461,1704329437398,-500.0,0.00032876,2]
[310100462,1704329437408,-500.0,0.00032876,2]
[310100463,1704329437416,-396.31046648,0.00032876,2]
[310100464,1704329437442,-103.68953352,0.00032876,2]
[310100465,1704329437451,-3488.63,0.00032876,2]
[310100466,1704329437461,-500.0,0.00032876,2]
[310100467,1704329437471,-551.82,0.00032876,2]
[310100468,1704329437480,-500.0,0.00032876,2]
[310100469,1704329437489,-177.68573107,0.00032876,2]
[310100470,1704329437498,-500.0,0.00032876,2]
[310100471,1704329437508,-500.0,0.00032876,2]
[310100472,1704329437517,-500.0,0.00032876,2]
[310100473,1704329437527,-610.54,0.00032876,2]
[310100474,1704329437537,-500.0,0.00032876,2]
[310100475,1704329437550,-500.0,0.00032876,2]
[310100476,1704329437563,-500.0,0.00032876,2]
[310100477,1704329437577,-463.69269907,0.00032876,2]
[310100478,1704329437589,-716.7,0.00032876,2]
[310100479,1704329437602,-500.0,0.00032876,2]
[310100480,1704329437614,-500.0,0.00032876,2]
[310100481,1704329437627,-500.0,0.00032876,2]
[310100482,1704329437640,-500.0,0.00032876,2]
[310100483,1704329437652,-500.0,0.00032876,2]
[310100484,1704329437665,-500.0,0.00032876,2]
[310100485,1704329437679,-1361.98,0.00032876,2]
[310100486,1704329437691,-500.0,0.00032876,2]
[310100487,1704329437704,-1741.64,0.00032876,2]
[310100488,1704329437717,-500.0,0.00032876,2]
[310100489,1704329437730,-500.0,0.00032876,2]
[310100490,1704329437742,-500.0,0.00032876,2]
[310100491,1704329437753,-500.0,0.00032876,2]
[310100492,1704329437764,-1436.73,0.00032876,2]
[310100493,1704329437776,-500.0,0.00032876,2]
[310100494,1704329437788,-500.0,0.00032876,2]
[310100495,1704329437800,-500.0,0.00032876,2]
[310100496,1704329437812,-296.91061285,0.00032876,2]
[310100497,1704329437833,-203.08938715,0.00032876,2]
[310100498,1704329437845,-500.0,0.00032876,2]
[310100499,1704329437857,-500.0,0.00032876,2]
[310100500,1704329437868,-500.0,0.00032876,2]
[310100501,1704329437878,-500.0,0.00032876,2]
[310100502,1704329437887,-500.0,0.00032876,2]
[310100503,1704329437901,-500.0,0.00032876,2]
[310100504,1704329437913,-500.0,0.00032876,2]
[310100505,1704329437924,-500.0,0.00032876,2]
[310100506,1704329437936,-267.21081285,0.00032876,2]
[310100507,1704329437951,-363.14918715,0.00032876,2]
[310100508,1704329437962,-307.03322961,0.00032876,2]
[310100527,1704329438572,-155.0,0.00022592,2]
[310100528,1704329438583,-192.96677039,0.00032876,2]
[310100529,1704329438595,-500.0,0.00032876,2]
[310100530,1704329438605,-500.0,0.00032876,2]
[310100531,1704329438616,-500.0,0.00032876,2]
[310100532,1704329438628,-879.44750946,0.00032876,2]
[310100533,1704329438677,-4202.31249054,0.00032876,2]
[310100534,1704329438688,-1003.36,0.00032876,2]
[310100535,1704329438699,-500.0,0.00032876,2]
[310100536,1704329438711,-176.21,0.00032876,2]
[310100538,1704329438721,-500.0,0.00032876,2]
[310100540,1704329438731,-500.0,0.00032876,2]
[310100542,1704329438742,-521.94,0.00032876,2]
[310100544,1704329438753,-500.0,0.00032876,2]
[310100546,1704329438765,-500.0,0.00032876,2]
[310100548,1704329438775,-491.82901083,0.00032876,2]
[310100552,1704329438802,-176.74098917,0.00032876,2]
[310100554,1704329438817,-500.0,0.00032876,2]
[310100557,1704329438831,-395.05678986,0.00032876,2]
[310100560,1704329438848,-104.94321014,0.00032876,2]
[310100562,1704329438863,-265.87796536,0.00032876,2]
[310100565,1704329438882,-234.12203464,0.00032876,2]
[310100567,1704329438895,-332.37410822,0.00032876,2]
[310100570,1704329438910,-167.62589178,0.00032876,2]
[310100572,1704329438922,-264.19194764,0.00032876,2]
[310100575,1704329438936,-500.0,0.00032876,2]
[310100577,1704329438949,-500.0,0.00032876,2]
[310100580,1704329438962,-5619.33,0.00032876,2]
[310100582,1704329438976,-500.0,0.00032876,2]
[310100584,1704329438988,-500.0,0.00032876,2]
[310100587,1704329439001,-756.75,0.00032876,2]
[310100589,1704329439017,-247.96816124,0.00032876,2]
[310100592,1704329439034,-252.03183876,0.00032876,2]
[310100594,1704329439046,-331.23027426,0.00032876,2]
[310100597,1704329439062,-168.76972574,0.00032876,2]
[310100599,1704329439074,-500.0,0.00032876,2]
[310100601,1704329439085,-500.0,0.00032876,2]
[310100603,1704329439097,-766.37551243,0.00032876,2]
[310100606,1704329439112,-103.27448757,0.00032876,2]
[310100608,1704329439124,-500.0,0.00032876,2]
[310100610,1704329439135,-500.0,0.00032876,2]
[310100612,1704329439146,-500.0,0.00032876,2]
[310100615,1704329439158,-500.0,0.00032876,2]
[310100617,1704329439169,-500.0,0.00032876,2]
[310100619,1704329439180,-500.0,0.00032876,2]
[310100621,1704329439191,-500.0,0.00032876,2]
[310100623,1704329439203,-500.0,0.00032876,2]
[310100626,1704329439214,-500.0,0.00032876,2]
[310100628,1704329439226,-500.0,0.00032876,2]
[310100630,1704329439237,-500.0,0.00032876,2]
[310100632,1704329439249,-2210.74,0.00032876,2]
[310100635,1704329439264,-500.0,0.00032876,2]
[310100637,1704329439277,-1979.54782336,0.00032876,2]
[310100643,1704329439317,-744.68217664,0.00032876,2]
[310100645,1704329439328,-500.0,0.00032876,2]
[310100647,1704329439341,-500.0,0.00032876,2]
[310100648,1704329439353,-509.06,0.00032876,2]
[310100649,1704329439365,-933.82,0.00032876,2]
[310100650,1704329439376,-500.0,0.00032876,2]
[310100651,1704329439388,-500.0,0.00032876,2]
[310100652,1704329439399,-500.0,0.00032876,2]
[310100654,1704329439410,-500.0,0.00032876,2]
[310100656,1704329439422,-1431.94,0.00032876,2]
[310100658,1704329439433,-827.42,0.00032876,2]
[310100661,1704329439445,-500.0,0.00032876,2]
[310100663,1704329439457,-500.0,0.00032876,2]
[310100665,1704329439468,-500.0,0.00032876,2]
[310100667,1704329439479,-500.0,0.00032876,2]
[310100670,1704329439491,-500.0,0.00032876,2]
[310100672,1704329439502,-422.5701609,0.00032876,2]
[310100674,1704329439516,-2956.18,0.00032876,2]
[310100676,1704329439528,-500.0,0.00032876,2]
[310100679,1704329439540,-500.0,0.00032876,2]
[310100681,1704329439551,-500.0,0.00032876,2]
[310100683,1704329439566,-500.0,0.00032876,2]
[310100685,1704329439578,-535.8,0.00032876,2]
[310100688,1704329439592,-916.24,0.00032876,2]
[310100690,1704329439604,-500.0,0.00032876,2]
[310100692,1704329439616,-500.0,0.00032876,2]
[310100694,1704329439628,-4196.87,0.00032876,2]
[310100697,1704329439644,-1234.54,0.00032876,2]
[310100699,1704329439655,-500.0,0.00032876,2]
[310100701,1704329439668,-500.0,0.00032876,2]
[310100704,1704329439682,-500.0,0.00032876,2]
[310100706,1704329439694,-500.0,0.00032876,2]
[310100708,1704329439706,-500.0,0.00032876,2]
[310100710,1704329439718,-951.86,0.00032876,2]
[310100712,1704329439730,-500.0,0.00032876,2]
[310100714,1704329439742,-849.23,0.00032876,2]
[310100716,1704329439753,-500.0,0.00032876,2]
[310100719,1704329439765,-500.0,0.00032876,2]
[310100721,1704329439776,-1203.45,0.00032876,2]
[310100723,1704329439787,-500.0,0.00032876,2]
[310100725,1704329439799,-500.0,0.00032876,2]
[310100727,1704329439809,-513.39891332,0.00032876,2]
[310100729,1704329439821,-404.02948153,0.00032876,2]
[310100732,1704329439832,-500.0,0.00032876,2]
[310100734,1704329439843,-212.01666249,0.00032876,2]
[310100736,1704329439854,-500.0,0.00032876,2]
[310100738,1704329439865,-500.0,0.00032876,2]
[310100740,1704329439876,-500.0,0.00032876,2]
[310100742,1704329439887,-2204.71,0.00032876,2]
[310100744,1704329439899,-500.0,0.00032876,2]
[310100745,1704329439912,-500.0,0.00032876,2]
[310100747,1704329439923,-838.75,0.00032876,2]
[310100749,1704329439934,-1135.52,0.00032876,2]
[310100750,1704329439944,-500.0,0.00032876,2]
[310100751,1704329439955,-500.0,0.00032876,2]
[310100752,1704329439966,-500.0,0.00032876,2]
[310100753,1704329439976,-500.0,0.00032876,2]
[310100754,1704329439986,-616.07,0.00032876,2]
[310100755,1704329439997,-976.65,0.00032876,2]
[310100756,1704329440008,-179.84314813,0.00032876,2]
[310100757,1704329440023,-320.15685187,0.00032876,2]
[310100758,1704329440034,-500.0,0.00032876,2]
[310100759,1704329440045,-1522.61427172,0.00032876,2]
[310100760,1704329440060,-626.52455105,0.00032876,2]
[310100761,1704329440073,-281.55,0.00032876,2]
[310100762,1704329440086,-1106.17638195,0.00032876,2]
[310100763,1704329440101,-616.01249581,0.00032876,2]
[310100772,1704329440731,-120.43229947,0.00032876,2]
[310100774,1704329440742,-236.56403375,0.00032876,2]
[310100778,1704329440795,-265.01596625,0.00032876,2]
[310100780,1704329440805,-500.0,0.00032876,2]
[310100782,1704329440814,-1026.96,0.00032876,2]
[310100784,1704329440824,-359.69962743,0.00032876,2]
[310100786,1704329440837,-1101.75037257,0.00032876,2]
[310100820,1704329441252,-253.64954243,0.00032876,2]
[310100821,1704329441284,-246.35045757,0.00032876,2]
[310100822,1704329441300,-291.44454243,0.00032876,2]
[310100823,1704329441347,-208.55545757,0.00032876,2]
[310100824,1704329441356,-294.08539841,0.00032876,2]
[310100825,1704329441368,-205.91460159,0.00032876,2]
[310100826,1704329441377,-469.29885772,0.00032876,2]
[310100827,1704329441389,-986.07114228,0.00032876,2]
[310100828,1704329441398,-500.0,0.00032876,2]
[310100829,1704329441407,-500.0,0.00032876,2]
[310100830,1704329441416,-500.0,0.00032876,2]
[310100831,1704329441429,-500.0,0.00032876,2]
[310100832,1704329441438,-500.0,0.00032876,2]
[310100833,1704329441447,-500.0,0.00032876,2]
[310100834,1704329441457,-691.15,0.00032876,2]
[310100835,1704329441466,-500.0,0.00032876,2]
[310100836,1704329441475,-500.0,0.00032876,2]
[310100837,1704329441485,-198.0,0.00032876,2]
[310100838,1704329441494,-500.0,0.00032876,2]
[310100839,1704329441504,-520.63,0.00032876,2]
[310100840,1704329441513,-500.0,0.00032876,2]
[310100841,1704329441522,-500.0,0.00032876,2]
[310100842,1704329441532,-500.0,0.00032876,2]
[310100843,1704329441541,-500.0,0.00032876,2]
[310100844,1704329441550,-500.0,0.00032876,2]
[310100845,1704329441560,-500.0,0.00032876,2]
[310100846,1704329441569,-500.0,0.00032876,2]
[310100847,1704329441579,-6150.03,0.00032876,2]
[310100848,1704329441588,-500.0,0.00032876,2]
[310100849,1704329441597,-500.0,0.00032876,5]
[310100850,1704329441607,-956.67,0.00032876,2]
[310100851,1704329441616,-544.82,0.00032876,2]
[310100852,1704329441632,-4728.97,0.00032876,2]
[310100853,1704329441651,-1025.21,0.00032876,2]
[310100854,1704329441661,-500.0,0.00032876,2]
[310100855,1704329441670,-571.62768206,0.00032876,2]
[310100856,1704329441679,-500.0,0.00032876,2]
[310100857,1704329441689,-500.0,0.00032876,2]
[310100858,1704329441698,-500.0,0.00032876,2]
[310100859,1704329441707,-709.64,0.00032876,2]
[310100860,1704329441718,-500.0,0.00032876,2]
[310100861,1704329441727,-500.0,0.00032876,2]
[310100862,1704329441736,-195.40893108,0.00032876,2]
[310100863,1704329441746,-500.0,0.00032876,2]
[310100864,1704329441756,-500.0,0.00032876,2]
[310100865,1704329441766,-500.0,0.00032876,2]
[310100867,1704329441777,-660.68,0.00032877,15]
[310100869,1704329441787,-179.09290445,0.00032887,6]
[310100871,1704329441796,-151.40104,0.00032898,2]
[310100873,1704329441807,-263.67882817,0.000329,2]
[310100874,1704329441816,-6057.55321777,0.000329,2]
[310100875,1704329441826,-152.0,0.00032969,3]
[310100876,1704329441835,-203.58912475,0.0003298,2]
[310100877,1704329441844,-416.87,0.00032986,2]
[310100878,1704329441854,-150.0,0.00032986,2]
[310100879,1704329441863,-151.88,0.00032986,2]
[310100880,1704329441872,-150.0,0.00032986,2]
[310100881,1704329441881,-393.7,0.00032986,2]
[310100882,1704329441890,-272.49,0.00032986,2]
[310100883,1704329441900,-313.44,0.00032986,2]
[310100884,1704329441909,-150.0,0.00032986,2]
[310100885,1704329441918,-150.0,0.00032986,2]
[310100886,1704329441928,-416.87,0.00032986,2]
[310100887,1704329441937,-407.06,0.00032986,2]
[310100888,1704329441947,-407.06,0.00032986,2]
[310100889,1704329441956,-416.87,0.00032986,2]
[310100890,1704329441966,-313.44,0.00032986,2]
[310100891,1704329441975,-150.0,0.00032986,2]
[310100892,1704329441984,-150.0,0.00032986,2]
[310100893,1704329441994,-407.06,0.00032986,2]
[310100894,1704329442003,-416.87,0.00032986,2]
[310100895,1704329442012,-150.0,0.00032986,2]
[310100896,1704329442021,-150.0,0.00032986,2]
[310100897,1704329442030,-407.06,0.00032986,2]
[310100898,1704329442040,-313.44,0.00032986,2]
[310100899,1704329442049,-407.06,0.00032986,2]
[310100900,1704329442058,-150.0,0.00032986,2]
[310100901,1704329442067,-839.18,0.00032986,2]
[310100902,1704329442077,-150.0,0.00032986,2]
[310100903,1704329442086,-313.44,0.00032986,2]
[310100904,1704329442095,-150.0,0.00032986,2]
[310100905,1704329442104,-150.0,0.00032986,2]
[310100906,1704329442114,-150.0,0.00032986,2]
[310100907,1704329442123,-150.0,0.00032986,2]
[310100908,1704329442132,-150.0,0.00032986,2]
[310100909,1704329442141,-313.44,0.00032986,2]
[310100910,1704329442150,-150.0,0.00032986,2]
[310100911,1704329442161,-313.44,0.00032986,2]
[310100912,1704329442172,-150.0,0.00032986,2]
[310100913,1704329442181,-150.0,0.00032986,2]
[310100914,1704329442191,-313.44,0.00032986,2]
[310100915,1704329442201,-150.0,0.00032986,2]
[310100916,1704329442211,-150.0,0.00032986,2]
[310100917,1704329442220,-150.0,0.00032986,2]
[310100918,1704329442229,-151.40104,0.00032998,2]
[310100919,1704329442239,-500.0,0.00032999,2]
[310100920,1704329442248,-1000.0,0.00032999,2]
[310100921,1704329442259,-1000.0,0.00032999,2]
[310100922,1704329442268,-903.27655234,0.00032999,2]
[310100923,1704329442277,-197.5373899,0.00033,2]
[310100924,1704329442287,-2000.0,0.00033,2]
[310100925,1704329442296,-2000.0,0.00033,2]
[310100926,1704329442305,-2000.0,0.00033,2]
[310100927,1704329442314,-2000.0,0.00033,2]
[310100928,1704329442324,-2000.0,0.00033,2]
[310100929,1704329442333,-547.84939,0.00033,2]